bitfinex-derivatives/quotes_SOLF0:USTF0_20241216
["timestamp","ask_amount","ask_price","bid_price","bid_amount"]
[1734345653063,2.2937,218.05,218.0,6.40443484]
[1734345653263,1.5069,218.06,218.0,6.40443484]
[1734345653864,2.294,218.02,218.0,6.40443484]
[1734345655969,3.6069,218.06,218.0,6.40443484]
[1734345655970,2.294,218.01,218.0,6.40443484]
[1734345656863,2.2937,218.05,218.0,6.40443484]
[1734345657060,1.5069,218.06,218.03,6.40443484]
[1734345657768,3.8004,218.06,218.05,6.40443484]
[1734345657973,1.5069,218.06,218.0,2.2941]
[1734345658267,1.5069,218.06,218.04,6.40443484]
[1734345658464,2.2936,218.05,218.04,6.40443484]
[1734345658663,1.5069,218.06,217.96,2.1]
[1734345658860,1.5069,218.06,217.92,2.5541]
[1734345659168,1.5069,218.06,218.02,6.40443484]
[1734345661573,2.2938,218.03,218.02,6.40443484]
[1734345665665,2.1,218.05,217.96,2.2945]
[1734345665666,2.2941,218.0,217.96,2.2945]
[1734345665866,2.2941,218.0,217.99,6.40443484]
[1734345666577,2.1,218.05,217.99,6.40443484]
[1734345666869,1.5069,218.06,218.03,6.40443484]
[1734345667073,253.6255098,218.08,218.05,6.40443484]
[1734345667373,253.6255098,218.08,218.05,1.92024049]
[1734345667574,2.2935,218.06,218.05,1.92024049]
[1734345676377,251.5255098,218.11,218.05,1.92024049]
[1734345676682,251.5255098,218.14,218.1,6.40443484]
[1734345676885,9.48536312,218.13,218.12,6.40443484]
[1734345677086,2.2927,218.13,218.12,1.96325492]
[1734345678285,2.2929,218.11,218.1,6.40443484]
[1734345678975,252.9658098,218.15,218.07,2.1]
[1734345679175,259.37024464,218.15,218.03,2.1]
[1734345679377,8.7289395,218.14,218.08,6.40443484]
[1734345679577,2.1,218.13,218.08,6.40443484]
[1734345680179,253.6255098,218.13,218.08,6.40443484]
[1734345680581,2.2932,218.09,218.08,6.40443484]
[1734345681789,2.2931,218.1,218.08,6.40443484]
[1734345682087,2.2931,218.1,218.09,6.40443484]
[1734345685689,2.293,218.11,218.09,6.40443484]
[1734345685887,2.293,218.11,218.1,6.40443484]
[1734345692184,6.40443484,218.15,218.01,4.2244]
[1734345692383,6.40443484,218.13,218.07,6.40443484]
[1734345692584,3.5425,218.12,218.07,6.40443484]
[1734345692990,2.2933,218.08,218.07,6.40443484]
[1734345693287,2.1,218.11,218.01,4.394]
[1734345693489,2.1,218.11,218.07,6.40443484]
[1734345693689,2.1,218.11,218.0,5.46234482]
[1734345693690,2.1,218.11,218.05,6.40443484]
[1734345694191,2.2935,218.06,218.05,6.40443484]
[1734345696194,261.71243949,218.12,218.05,6.40443484]
[1734345696398,251.5255098,218.12,218.1,6.40443484]
[1734345697294,253.6255098,218.16,218.1,6.40443484]
[1734345697497,2.2929,218.11,218.1,6.40443484]
[1734345698689,253.6255098,218.16,218.1,6.40443484]
[1734345698893,2.2928,218.12,218.1,6.40443484]
[1734345701297,251.5255098,218.16,218.1,6.40443484]
[1734345701497,251.5255098,218.16,218.15,6.40443484]
[1734345701687,251.5255098,218.16,218.15,2.00554879]
[1734345701885,251.5255098,218.18,218.15,2.00554879]
[1734345702085,2.2923,218.17,218.15,2.00554879]
[1734345702387,251.5255098,218.18,218.15,2.00554879]
[1734345702689,2.2923,218.17,218.15,2.00554879]
[1734345702892,251.5255098,218.18,218.15,2.00554879]
[1734345703093,3.0077,218.19,218.15,2.00554879]
[1734345703500,3.0077,218.19,218.09,2.1]
[1734345703694,3.0077,218.19,218.13,6.40443484]
[1734345703890,2.2923,218.18,218.13,6.40443484]
[1734345704091,3.0077,218.19,218.13,6.40443484]
[1734345705492,2.2926,218.15,218.13,6.40443484]
[1734345706496,3.0077,218.19,218.09,2.1]
[1734345706691,1.5075,218.18,218.12,6.40443484]
[1734345706900,2.1,218.17,218.12,6.40443484]
[1734345707092,2.2928,218.13,218.12,6.40443484]
[1734345711393,2.2927,218.14,218.12,6.40443484]
[1734345711617,2.1,218.17,218.14,6.40443484]
[1734345712095,253.0330098,218.18,218.14,6.40443484]
[1734345712398,2.2925,218.15,218.14,6.40443484]
[1734345715501,2.2925,218.15,218.09,2.2931]
[1734345715697,2.2927,218.14,218.09,2.2931]
[1734345717296,2.2928,218.13,218.09,2.2931]
[1734345717505,2.2928,218.13,218.12,6.40443484]
[1734345718597,2.2928,218.13,218.07,2.1]
[1734345718598,251.5255098,218.16,218.07,2.1]
[1734345718802,2.2929,218.12,218.08,2.2933]
[1734345719702,2.293,218.11,218.08,2.2933]
[1734345719903,2.293,218.11,218.1,6.40443484]
[1734345722607,2.293,218.11,218.1,11.55898275]
[1734345722905,2.293,218.11,218.1,11.55896523]
[1734345723497,2.293,218.11,218.1,6.40443484]
[1734345724309,2.293,218.11,218.1,11.48768699]
[1734345724608,2.2928,218.12,218.1,11.48768699]
[1734345724810,2.2928,218.12,218.11,6.40443484]
[1734345727905,2.2928,218.12,218.03,1.0799]
[1734345727906,2.1,218.18,218.03,1.0799]
[1734345728203,2.293,218.11,218.04,11.62227091]
[1734345728417,2.293,218.11,218.05,6.23095316]
[1734345728610,2.293,218.11,218.06,5.08372388]
[1734345728809,2.293,218.11,218.07,5.08372388]
[1734345729011,2.293,218.11,218.08,5.08372388]
[1734345729207,2.293,218.11,218.1,6.40443484]
[1734345731541,6.40443484,218.16,217.89,15.19545682]
[1734345731706,6.40443484,218.12,218.01,5.08425975]
[1734345732002,5.1586,218.11,218.05,6.40443484]
[1734345732407,2.2935,218.06,218.05,6.40443484]
[1734345733713,253.8187098,218.09,218.05,6.40443484]
[1734345734004,253.8187098,218.09,218.0,7.56234482]
[1734345734005,253.8187098,218.09,218.08,6.40443484]
[1734345734202,2.2932,218.09,218.08,6.40443484]
[1734345735005,1.5555,218.11,218.08,6.40443484]
[1734345735206,251.5255098,218.15,218.1,6.40443484]
[1734345735511,251.5255098,218.15,218.13,6.40443484]
[1734345736511,2.2926,218.14,218.13,6.40443484]
[1734345739515,251.5255098,218.16,218.11,6.40443484]
[1734345740114,2.2928,218.13,218.11,6.40443484]
[1734345740615,251.5255098,218.16,218.08,2.1]
[1734345740817,2.293,218.11,218.09,6.40443484]
[1734345748421,2.2931,218.1,218.09,6.40443484]
[1734345749023,2.2932,218.09,218.05,2.1]
[1734345749226,292.04861082,218.14,218.08,6.40443484]
[1734345749428,292.04861082,218.14,218.1,6.40443484]
[1734345749630,2.2929,218.11,218.1,6.40443484]
[1734345749927,289.94861082,218.14,218.1,6.40443484]
[1734345750317,38.42310102,218.14,218.1,6.40443484]
[1734345750517,2.2928,218.12,218.1,6.40443484]
[1734345750719,38.42310102,218.14,218.08,6.40443484]
[1734345750921,257.92994464,218.15,218.08,6.40443484]
[1734345751325,2.2931,218.1,218.08,6.40443484]
[1734345751621,251.5255098,218.14,218.08,6.40443484]
[1734345751821,2.1,218.13,218.08,6.40443484]
[1734345752419,2.2932,218.09,218.08,6.40443484]
[1734345753027,2.2932,218.09,218.05,2.1]
[1734345753227,2.2932,218.09,218.08,6.40443484]
[1734345753427,253.6255098,218.13,218.05,2.1]
[1734345753627,253.6255098,218.13,218.08,6.40443484]
[1734345753820,260.02994464,218.13,218.06,6.40443484]
[1734345754926,251.5255098,218.1,218.06,6.40443484]
[1734345755126,251.5255098,218.1,218.0,2.1]
[1734345755328,3.634,218.09,217.99,2.1]
[1734345755526,6.6822,218.09,217.96,1.5656]
[1734345755729,6.6822,218.09,217.97,4.3944]
[1734345755931,251.5255098,218.08,218.03,6.40443484]
[1734345757032,2.2937,218.04,218.03,6.40443484]
[1734345759725,2.2939,218.03,218.01,6.40443484]
[1734345765544,2.2939,218.02,218.01,6.40443484]
[1734345766037,2.2938,218.03,218.01,6.40443484]
[1734345766538,2.2936,218.05,218.01,6.40443484]
[1734345766740,6.6822,218.09,218.03,6.40443484]
[1734345767032,2.2935,218.06,218.05,6.40443484]
[1734345767972,2.2937,218.05,218.01,2.1]
[1734345768139,4.5822,218.09,218.02,6.40443484]
[1734345769330,2.2937,218.05,218.02,6.40443484]
[1734345769938,2.2937,218.05,218.01,2.1]
[1734345770433,2.2937,218.05,218.03,6.40443484]
[1734345771842,2.2937,218.04,218.03,6.40443484]
[1734345773643,2.2935,218.06,218.03,6.40443484]
[1734345774275,2.2936,218.05,218.03,6.40443484]
[1734345774440,10.98663484,218.09,218.03,6.40443484]
[1734345774638,10.98663484,218.09,217.98,2.1]
[1734345774839,2.2939,218.03,217.98,2.1]
[1734345775147,8.50443484,218.07,218.0,6.40443484]
[1734345776042,2.2936,218.05,218.0,6.40443484]
[1734345776247,8.50443484,218.07,218.0,6.40443484]
[1734345776639,2.294,218.02,218.0,6.40443484]
[1734345778353,2.2941,218.0,217.94,26.96363931]
[1734345778551,2.2941,218.0,217.98,6.40443484]
[1734345778849,6.40443484,218.05,217.98,6.40443484]
[1734345780249,2.2941,218.01,217.98,6.40443484]
[1734345780847,6.40443484,218.01,217.95,6.40443484]
[1734345781350,8.50443484,218.03,217.95,6.40443484]
[1734345782047,2.2943,217.99,217.95,6.40443484]
[1734345782442,8.50443484,218.03,217.95,6.40443484]
[1734345783143,2.2944,217.98,217.95,6.40443484]
[1734345785952,2.2945,217.97,217.95,6.40443484]
[1734345788656,6.40443484,217.99,217.78,6.8892]
[1734345788856,6.40443484,217.97,217.86,2.1]
[1734345789162,6.40443484,217.97,217.91,6.40443484]
[1734345789360,2.2948,217.94,217.91,6.40443484]
[1734345789852,6.40443484,217.97,217.91,6.40443484]
[1734345790657,6.40443484,217.95,217.89,6.40443484]
[1734345790985,258.3675098,218.0,217.87,2.1]
[1734345790986,6.40443484,217.93,217.87,6.40443484]
[1734345791554,2.2953,217.89,217.79,4.0771]
[1734345791761,6.40443484,217.93,217.86,6.40443484]
[1734345792151,2.2954,217.88,217.86,6.40443484]
[1734345792556,6.40443484,217.91,217.86,6.40443484]
[1734345793365,2.2954,217.88,217.86,6.40443484]
[1734345793661,6.40443484,217.89,217.79,2.9904]
[1734345793865,2.2958,217.85,217.82,6.40443484]
[1734345794559,2.2958,217.84,217.82,6.40443484]
[1734345796205,2.2959,217.83,217.82,6.40443484]
[1734345797261,2.2961,217.81,217.8,6.40443484]
[1734345797763,6.40443484,217.87,217.78,2.1]
[1734345797959,6.40443484,217.85,217.79,6.40443484]
[1734345799064,2.2962,217.8,217.79,6.40443484]
[1734345800960,4.6303,217.89,217.79,6.40443484]
[1734345801265,6.40443484,217.86,217.79,6.40443484]
[1734345801973,2.2961,217.81,217.79,6.40443484]
[1734345802770,6.40443484,217.86,217.79,6.40443484]
[1734345803466,2.2958,217.84,217.79,6.40443484]
[1734345803672,6.40443484,217.84,217.77,6.40443484]
[1734345804363,2.2963,217.8,217.76,6.40443484]
[1734345805572,2.2964,217.79,217.76,6.40443484]
[1734345805867,6.40443484,217.78,217.73,0.33073]
[1734345806269,2.2968,217.74,217.73,0.33073]
[1734345808371,2.2972,217.71,217.68,7.13420448]
[1734345808574,7.13420448,217.74,217.68,7.13420448]
[1734345808764,7.13420448,217.74,217.65,2.1]
[1734345808765,7.13420448,217.74,217.66,7.13420448]
[1734345808964,2.2976,217.68,217.65,7.13420448]
[1734345809279,7.13420448,217.66,217.52,1.14934546]
[1734345809555,7.13420448,217.59,217.53,5.54618759]
[1734345809666,7.13420448,217.57,217.51,7.13420448]
[1734345809866,9.23420448,217.57,217.49,7.13420448]
[1734345810067,7.13420448,217.55,217.5,5.44780781]
[1734345810370,7.13420448,217.55,217.45,2.1]
[1734345810576,2.2994,217.5,217.46,7.13420448]
[1734345810777,2.1,217.52,217.46,7.13420448]
[1734345810982,7.13420448,217.51,217.44,7.13420448]
[1734345811970,7.13420448,217.51,217.42,2.3001]
[1734345812167,19.21566355,217.65,217.47,7.13420448]
[1734345812168,5.43566355,217.65,217.47,7.13420448]
[1734345812369,7.13420448,217.57,217.51,7.13420448]
[1734345812570,7.13420448,217.55,217.42,5.47209635]
[1734345812776,5.43566355,217.65,217.45,7.13420448]
[1734345812777,7.13420448,217.51,217.45,7.13420448]
[1734345813169,7.13420448,217.53,217.47,7.13420448]
[1734345813472,2.1,217.52,217.47,7.13420448]
[1734345814079,2.1,217.52,217.45,7.13420448]
[1734345814279,4.3993,217.52,217.47,7.13420448]
[1734345814778,2.1,217.52,217.47,7.13420448]
[1734345815979,9.23420448,217.52,217.47,7.13420448]
[1734345816179,9.23420448,217.52,217.45,7.13420448]
[1734345816479,2.2993,217.51,217.45,9.43410448]
[1734345818082,9.23420448,217.52,217.45,7.13420448]
[1734345818083,2.2994,217.5,217.45,7.13420448]
[1734345818772,2.2994,217.5,217.42,5.47209635]
[1734345818979,9.23420448,217.52,217.42,5.47209635]
[1734345819285,2.2996,217.48,217.44,7.13420448]
[1734345819482,2.2996,217.48,217.42,7.77219635]
[1734345819776,2.2996,217.48,217.43,7.13420448]
[1734345822280,7.13420448,217.48,217.4,5.2994]
[1734345822579,7.13420448,217.48,217.38,2.1]
[1734345822580,7.13420448,217.46,217.39,72.96218358]
[1734345823084,2.3,217.44,217.39,75.26268358]
[1734345823284,2.3,217.44,217.39,68.1284791]
[1734345823585,2.3,217.44,217.39,80.85238849]
[1734345823980,2.3,217.44,217.39,75.26268358]
[1734345824485,7.13420448,217.46,217.36,0.54247]
[1734345824680,7.13420448,217.44,217.38,7.13420448]
[1734345824876,2.3002,217.42,217.38,7.13420448]
[1734345825121,2.1,217.44,217.38,7.13420448]
[1734345825780,2.3002,217.42,217.38,9.43480448]
[1734345826482,2.3002,217.42,217.38,7.13420448]
[1734345826882,2.3002,217.42,217.37,7.7166663]
[1734345827084,2.3002,217.42,217.38,7.13420448]
[1734345827582,2.3002,217.42,217.38,9.43480448]
[1734345828178,7.13420448,217.46,217.38,9.43480448]
[1734345828383,2.3,217.45,217.4,9.43460448]
[1734345828790,6.94563481,217.54,217.42,7.13420448]
[1734345828988,2.2996,217.48,217.43,2.3001]
[1734345829186,4.3996,217.48,217.43,2.3001]
[1734345829379,2.1,217.48,217.43,2.3001]
[1734345829779,2.2997,217.47,217.42,9.43440448]
[1734345829983,9.23420448,217.49,217.42,9.43440448]
[1734345830380,9.23420448,217.49,217.42,7.13420448]
[1734345830589,7.13420448,217.47,217.39,7.13420448]
[1734345831284,7.13420448,217.45,217.37,5.4159663]
[1734345831490,9.23420448,217.45,217.37,12.55017078]
[1734345831887,2.3003,217.42,217.37,12.55017078]
[1734345832493,2.3001,217.43,217.39,2.3005]
[1734345832983,2.3003,217.42,217.37,2.3007]
[1734345833281,7.13420448,217.43,217.37,2.3007]
[1734345833482,7.13420448,217.43,217.36,7.67667448]
[1734345833686,2.3004,217.41,217.36,9.97747448]
[1734345834520,7.13420448,217.43,217.36,9.97747448]
[1734345834684,2.3005,217.4,217.36,2.84327]
[1734345835384,2.3008,217.37,217.36,0.54247]
[1734345836883,7.13420448,217.39,217.36,0.54247]
[1734345837084,2.3007,217.38,217.36,0.54247]
[1734345837289,2.1,217.46,217.37,7.13420448]
[1734345837496,7.13420448,217.45,217.37,7.13420448]
[1734345837987,2.1,217.46,217.36,0.54247]
[1734345838186,2.3002,217.42,217.37,2.3007]
[1734345838388,2.3002,217.42,217.36,0.54247]
[1734345839490,2.1,217.46,217.36,0.54247]
[1734345839702,2.3004,217.41,217.36,0.54247]
[1734345839886,11.1806384,217.45,217.36,0.54247]
[1734345840089,2.3006,217.39,217.36,0.54247]
[1734345840290,2.1,217.42,217.36,0.54247]
[1734345841397,2.3006,217.39,217.36,0.54247]
[1734345841887,2.1,217.42,217.36,0.54247]
[1734345842092,2.1,217.42,217.34,2.3011]
[1734345843290,2.1,217.42,217.36,2.3008]
[1734345843291,2.3005,217.4,217.36,2.3008]
[1734345843493,2.1,217.43,217.35,11.1806384]
[1734345843693,1.4443,217.44,217.35,13.2806384]
[1734345843891,2.3001,217.43,217.38,2.3005]
[1734345844095,2.3001,217.43,217.35,13.2806384]
[1734345844391,2.3001,217.43,217.37,2.3007]
[1734345844591,2.3001,217.43,217.35,13.2806384]
[1734345844790,253.6255098,217.46,217.35,13.2806384]
[1734345844991,251.5255098,217.47,217.38,11.1806384]
[1734345845187,251.5255098,217.47,217.39,2.1]
[1734345845898,251.5255098,217.47,217.4,2.3004]
[1734345846097,253.6255098,217.49,217.4,2.3004]
[1734345846399,253.6255098,217.49,217.41,2.3003]
[1734345846400,2.3,217.45,217.41,2.3003]
[1734345846594,2.3,217.45,217.39,2.1]
[1734345846793,253.6255098,217.49,217.42,2.3002]
[1734345846794,2.2998,217.46,217.42,2.3002]
[1734345847294,2.2998,217.46,217.39,2.1]
[1734345847495,2.2996,217.48,217.44,2.3]
[1734345848041,2.2998,217.46,217.42,2.3002]
[1734345848296,255.2033098,217.5,217.39,2.1]
[1734345848698,2.2997,217.47,217.41,2.3003]
[1734345848903,255.2033098,217.5,217.41,2.3003]
[1734345849602,251.5255098,217.49,217.41,2.3003]
[1734345849902,251.5255098,217.49,217.41,11.1806384]
[1734345850396,253.6255098,217.49,217.38,13.2806384]
[1734345850599,11.1806384,217.48,217.38,2.1]
[1734345850795,2.3,217.45,217.38,2.1]
[1734345850995,251.5255098,217.47,217.38,2.1]
[1734345851303,2.3,217.45,217.39,2.3005]
[1734345851594,251.5255098,217.47,217.38,13.2806384]
[1734345851792,253.6255098,217.49,217.38,13.2806384]
[1734345851994,2.2998,217.46,217.42,2.3002]
[1734345852194,2.2998,217.46,217.39,1.15066823]
[1734345852195,253.6255098,217.49,217.38,13.2806384]
[1734345852393,253.6255098,217.49,217.39,1.15066749]
[1734345852700,253.6255098,217.49,217.4,1.15066749]
[1734345852898,2.1,217.49,217.38,13.2806384]
[1734345853098,2.1,217.49,217.39,1.15066353]
[1734345853301,2.2998,217.46,217.4,1.15066353]
[1734345853499,2.2998,217.46,217.41,1.15066353]
[1734345853702,2.2996,217.48,217.42,1.15066353]
[1734345854005,255.2033098,217.5,217.41,2.3002]
[1734345854402,2.2998,217.46,217.42,1.15068297]
[1734345854603,2.2998,217.46,217.41,2.3002]
[1734345855313,2.2998,217.46,217.42,2.3002]
[1734345855603,255.2033098,217.5,217.43,1.15071683]
[1734345855804,2.2997,217.48,217.44,1.15071683]
[1734345856001,255.2033098,217.5,217.42,2.1]
[1734345856196,253.1033098,217.5,217.44,11.1806384]
[1734345856424,1.5956,217.51,217.45,1.15058503]
[1734345856604,1.5956,217.51,217.46,1.15051979]
[1734345856801,1.5956,217.51,217.44,11.1806384]
[1734345857001,1.5956,217.51,217.45,1.15052006]
[1734345857198,1.5956,217.51,217.42,2.1]
[1734345857405,2.2997,217.47,217.43,3.4506576]
[1734345857709,1.5956,217.51,217.44,1.1505576]
[1734345857907,2.2996,217.49,217.45,3.4504576]
[1734345858100,2.2996,217.49,217.45,2.2999]
[1734345858304,2.2996,217.49,217.42,2.1]
[1734345858806,3.6305,217.53,217.42,2.1]
[1734345858807,2.2994,217.5,217.42,2.1]
[1734345859106,3.6305,217.53,217.44,11.1806384]
[1734345859107,1.5305,217.53,217.44,11.1806384]
[1734345859311,2.2992,217.52,217.44,11.1806384]
[1734345860002,2.2992,217.52,217.42,2.1]
[1734345860003,2.2992,217.52,217.5,7.1487505]
[1734345860709,260.2057603,217.56,217.5,7.1487505]
[1734345860906,2.2993,217.51,217.5,2.27919799]
[1734345861110,2.2993,217.51,217.48,9.2487505]
[1734345861811,2.2992,217.52,217.48,9.2487505]
[1734345862111,2.2992,217.52,217.48,2.1]
[1734345862512,2.2991,217.53,217.48,2.1]
[1734345863210,2.2989,217.55,217.48,13.26790687]
[1734345863412,253.0570098,217.56,217.48,13.26790687]
[1734345863664,251.5255098,217.56,217.48,13.26790687]
[1734345863822,251.5255098,217.56,217.55,2.2988]
[1734345864013,355.03692287,217.63,217.55,2.2988]
[1734345864014,251.5255098,217.62,217.55,2.2988]
[1734345864216,251.5255098,217.62,217.53,2.1]
[1734345864418,2.2984,217.6,217.56,2.2987]
[1734345865112,2.2984,217.6,217.53,2.1]
[1734345865113,2.2985,217.58,217.54,2.2988]
[1734345866818,2.1,217.63,217.55,2.2988]
[1734345867822,2.2984,217.59,217.55,2.2988]
[1734345868416,3.0723,217.64,217.54,11.16790687]
[1734345868612,1.4842,217.64,217.57,11.16790687]
[1734345868872,251.5255098,217.68,217.58,2.1]
[1734345869016,6.7016,217.7,217.58,2.1]
[1734345869223,2.2978,217.66,217.61,2.2982]
[1734345869617,6.7016,217.7,217.59,11.15695712]
[1734345870422,17.85855712,217.7,217.59,11.15695712]
[1734345870714,17.85855712,217.7,217.58,2.1]
[1734345871122,17.85855712,217.7,217.58,2.2985]
[1734345871123,2.2981,217.62,217.58,2.2985]
[1734345872021,2.2977,217.67,217.59,2.2984]
[1734345872220,17.85855712,217.7,217.59,2.2984]
[1734345873922,2.298,217.64,217.59,2.2984]
[1734345874330,2.298,217.64,217.57,2.1]
[1734345874531,2.298,217.63,217.59,2.2984]
[1734345879529,2.298,217.63,217.6,2.2983]
[1734345880127,2.298,217.63,217.57,2.1]
[1734345880128,2.2978,217.66,217.59,11.15695712]
[1734345880727,2.2976,217.67,217.62,2.2981]
[1734345880929,10.01042182,217.7,217.62,2.2981]
[1734345881360,4.6016,217.7,217.61,2.1]
[1734345881631,4.6016,217.7,217.62,11.15695712]
[1734345882527,2.2971,217.72,217.69,2.2974]
[1734345883129,2.2971,217.72,217.65,13.25695712]
[1734345883328,2.297,217.73,217.65,13.25695712]
[1734345884130,2.297,217.73,217.69,2.2974]
[1734345885631,2.2969,217.74,217.7,2.2972]
[1734345885833,2.9919,217.76,217.68,11.15695712]
[1734345887330,2.2971,217.72,217.68,11.15695712]
[1734345887531,2.9919,217.76,217.64,11.15695712]
[1734345887730,2.9919,217.76,217.64,13.25695712]
[1734345887933,2.9919,217.76,217.67,9.43508365]
[1734345887934,2.2972,217.71,217.67,9.43508365]
[1734345888137,2.2972,217.71,217.69,7.13748365]
[1734345888435,10.12938365,217.76,217.69,7.13748365]
[1734345888636,10.12938365,217.76,217.71,7.13748365]
[1734345889034,2.9919,217.76,217.73,7.13748365]
[1734345889234,2.9919,217.76,217.73,2.32872754]
[1734345890137,2.9919,217.76,217.73,4.62562754]
[1734345890538,2.9919,217.76,217.73,2.32872754]
[1734345891535,5.2886,217.76,217.73,2.32872754]
[1734345892635,2.9919,217.76,217.73,2.32872754]
[1734345892835,2.9919,217.76,217.71,7.13748365]
[1734345893231,2.2969,217.74,217.71,7.13748365]
[1734345893436,2.2969,217.74,217.71,9.43458365]
[1734345894439,2.9919,217.76,217.56,4.5973]
[1734345894440,10.12938365,217.76,217.56,4.5973]
[1734345894638,10.12938365,217.76,217.68,7.13748365]
[1734345895934,2.2972,217.71,217.68,7.13748365]
[1734345898641,10.12938365,217.76,217.68,7.13748365]
[1734345898838,2.2974,217.69,217.68,7.13748365]
[1734345899841,2.2974,217.69,217.65,4.3978]
[1734345900076,2.2974,217.69,217.67,7.13748365]
[1734345901442,2.2975,217.68,217.67,7.13748365]
[1734345902239,7.13748365,217.72,217.49,4.5988]
[1734345902450,7.13748365,217.7,217.63,7.13748365]
[1734345902842,2.1,217.69,217.63,7.13748365]
[1734345903250,3.0227,217.68,217.63,7.13748365]
[1734345903445,2.2979,217.64,217.63,7.13748365]
[1734345904246,2.2979,217.64,217.6,4.3983]
[1734345904445,2.2979,217.64,217.62,7.13748365]
[1734345905545,10.16018365,217.68,217.58,7.75629293]
[1734345905848,7.13748365,217.66,217.56,2.1]
[1734345906144,7.13748365,217.64,217.57,7.13748365]
[1734345906553,7.13748365,217.6,217.51,5.46983225]
[1734345906748,7.13748365,217.6,217.53,7.13748365]
[1734345906947,2.1,217.61,217.55,7.13748365]
[1734345907375,2.1,217.61,217.57,7.13748365]
[1734345907545,2.2985,217.59,217.57,7.13748365]
[1734345908345,2.1,217.61,217.55,7.13748365]
[1734345908651,9.23748365,217.61,217.55,7.13748365]
[1734345908950,3.0939,217.6,217.55,7.13748365]
[1734345909146,2.2987,217.56,217.55,7.13748365]
[1734345910568,10.23138365,217.6,217.5,2.1]
[1734345910746,7.13748365,217.58,217.52,7.13748365]
[1734345911651,2.2991,217.53,217.52,7.13748365]
[1734345911953,3.0939,217.6,217.52,7.13748365]
[1734345911954,10.23138365,217.6,217.52,7.13748365]
[1734345912143,2.2988,217.55,217.52,7.13748365]
[1734345912552,10.23138365,217.6,217.52,7.13748365]
[1734345912755,2.299,217.54,217.52,7.13748365]
[1734345913449,2.2991,217.53,217.52,7.13748365]
[1734345914652,2.2989,217.55,217.52,7.13748365]
[1734345915346,2.299,217.54,217.52,7.13748365]
[1734345915544,2.1,217.57,217.52,7.13748365]
[1734345918458,2.2991,217.53,217.52,7.13748365]
[1734345919258,2.1,217.57,217.52,7.13748365]
[1734345919455,2.299,217.54,217.52,7.13748365]
[1734345921255,2.2991,217.53,217.52,7.13748365]
[1734345924161,2.2991,217.53,217.47,2.1]
[1734345924473,7.13748365,217.56,217.48,7.13748365]
[1734345925062,2.2998,217.47,217.46,7.13748365]
[1734345926204,2.2996,217.48,217.46,7.13748365]
[1734345926460,9.23748365,217.56,217.46,7.13748365]
[1734345926764,2.2993,217.51,217.49,7.13748365]
[1734345928294,9.23748365,217.56,217.49,7.13748365]
[1734345928565,2.2994,217.5,217.49,7.13748365]
[1734345930260,1.5684,217.57,217.49,7.13748365]
[1734345930564,2.1,217.56,217.51,7.13748365]
[1734345930760,2.1,217.56,217.53,7.13748365]
[1734345931266,2.299,217.54,217.53,7.13748365]
[1734345934374,2.1,217.59,217.53,7.13748365]
[1734345934375,2.2989,217.55,217.53,7.13748365]
[1734345935069,10.23138365,217.6,217.53,7.13748365]
[1734345935264,2.2987,217.57,217.55,7.13748365]
[1734345935665,1.5565,217.6,217.55,9.43628365]
[1734345935865,2.1,217.61,217.57,7.13748365]
[1734345936064,7.13748365,217.62,217.57,7.13748365]
[1734345936964,2.2985,217.59,217.57,7.13748365]
[1734345937268,7.13748365,217.62,217.57,7.13748365]
[1734345939375,2.2984,217.59,217.57,7.13748365]
[1734345940068,1.5166,217.65,217.57,7.13748365]
[1734345940274,45.62437305,217.68,217.61,7.13748365]
[1734345940870,47.72437305,217.68,217.61,7.13748365]
[1734345941372,2.2981,217.62,217.61,7.13748365]
[1734345941574,7.13748365,217.66,217.59,7.13748365]
[1734345942174,2.2983,217.6,217.59,7.13748365]
[1734345942975,2.1,217.65,217.59,7.13748365]
[1734345943173,2.2982,217.62,217.59,7.13748365]
[1734345944277,2.2982,217.61,217.59,7.13748365]
[1734345945075,2.2982,217.61,217.57,2.1]
[1734345945276,2.2984,217.6,217.57,9.23748365]
[1734345945467,7.13748365,217.64,217.57,7.13748365]
[1734345945672,7.13748365,217.64,217.54,2.1]